{"text_format":"1","workbook":"xlsx","n_sheets":5,"sheets":["Blank Req","PO Req","Vendors","CES Vendors","Sheet1"],"not_rendered":{"charts":0,"images":1,"macros":1,"external_links":0,"defined_names":13,"comments":0,"pivot_tables":0},"unopened":[],"bounds":{"document_bytes":16777216,"sheet_cells":100000,"rows_first":2000,"rows_last":500,"rows_between":2000,"halvings":0,"cell_chars":16384,"cell_head_chars":4096},"cells_cut":0,"cells_raw":0,"read":"whole","date_system":"1900"}

{"sheet":"Blank Req","index":0,"n_rows":54,"n_cols":13,"rows_kept":54,"cut":false,"hidden":false,"merged":[[53,0,53,13],[48,12,48,13],[50,0,50,2],[50,3,50,6],[51,0,51,2],[51,3,51,6],[52,12,52,13],[47,0,47,1],[47,2,47,5],[47,10,47,11],[47,12,47,13],[41,4,41,8],[41,12,41,13],[42,4,42,8],[42,12,42,13],[43,4,43,8],[43,12,43,13],[44,4,44,8],[44,12,44,13],[45,8,45,11],[45,12,45,13],[46,12,46,13],[38,4,38,8],[38,12,38,13],[39,4,39,8],[39,12,39,13],[40,4,40,8],[40,12,40,13],[35,4,35,8],[35,12,35,13],[36,4,36,8],[36,12,36,13],[37,4,37,8],[37,12,37,13],[32,4,32,8],[32,12,32,13],[33,4,33,8],[33,12,33,13],[34,4,34,8],[34,12,34,13],[29,4,29,8],[29,12,29,13],[30,4,30,8],[30,12,30,13],[31,4,31,8],[31,12,31,13],[21,0,21,12],[23,0,23,1],[23,2,26,12],[27,0,27,6],[28,4,28,8],[28,12,28,13],[20,0,20,1],[20,2,20,5],[20,6,20,7],[20,8,20,11],[10,1,10,4],[11,1,11,4],[11,8,11,11],[12,1,12,4],[12,8,12,10],[13,2,13,4],[13,8,13,11],[14,8,14,11],[15,0,15,5],[16,0,16,2],[17,1,17,4],[17,7,17,11],[7,0,7,6],[8,1,8,4],[8,8,8,12],[9,1,9,4],[9,6,9,9],[9,10,9,11],[6,8,6,12],[0,0,0,7],[1,1,1,4],[2,1,2,5],[4,1,4,3],[5,1,5,3]]}
[]
[null,"Facilities and Services ",null,null,null,null," Requisition #:",null,null,null,null,null,"Official Use Only:"]
[null,"Purchasing Requisition/Order Form  "]
[]
["Requestor:"]
["Shop:","F&S, PD&E"]
[null,null,null,null,null,null,"Date Requested:",null,{"$f":"TODAY()","v":"2017-08-09"}]
["Vendor Information: (REQUIRED - Name, Address, & Phone)"]
["V"]
["E",null,null,null,null,null,"Aim Project # (if applicable):"]
["N",null,null,null,null,null,null,null,null,"Will R &R money be used?"," Yes","          No"]
["D",null,null,null,null,null,null,"CES Contractor:"]
["O"]
["R","Phone:"]
[null,null,null,null,null,null,null,"CES Contract #:"]
["Submit Purchase Order by: (REQUIRED - select one)"]
["         Hand Carry by Requestor:"]
["         Fax:",null,null,null,null,null,"Email:"]
[null," Must provide number",null,null,null,null,null,null," Must provide email address"]
[]
["Custodian Name:",null," ",null,null,null,"Custodian Org:"]
["Custodian Name & Org Required if unit cost of any furniture, fixture, or equipment listed below is $1000.00 or greater; see instructions."]
[]
["Purpose of Purchase:"]
[]
[]
[]
["*If no work order is applicable, include Index and Account Code"]
["Work\nOrder","Phase\n#","Index","Account","Complete Description of Item(s)",null,null,null,null,"Qty","Units","Unit\nCost","Total \nCost"]
[null,null,null,null,null,null,null,null,null,null,null,null,{"$f":"ROUND(J30*L30,2)","v":0}]
[null,null,null,null,null,null,null,null,null,null,null,null,{"$f":"ROUND(J31*L31,2)","v":0}]
[null,null,null,null,null,null,null,null,null,null,null,null,0]
[null,null,null,null,null,null,null,null,null,null,null,null,0]
[null,null,null,null,null,null,null,null,null,null,null,null,0]
[null,null,null,null,null,null,null,null,null,null,null,null,0]
[null,null,null,null,null,null,null,null,null,null,null,null,0]
[null,null,null,null,null,null,null,null,null,null,null,null,0]
[null,null,null,null,null,null,null,null,null,null,null,null,0]
[null,null,null,null,null,null,null,null,null,null,null,null,0]
[null,null,null,null,null,null,null,null,null,null,null,null,0]
[null,null,null,null,null,null,null,null,null,null,null,null,0]
[null,null,null,null,null,null,null,null,null,null,null,null,0]
[null,null,null,null,null,null,null,null,null,null,null,null,0]
[null,null,null,null,null,null,null,null,null,null,null,null,0]
[null,null,null,null,null,null,null,null,null,null,null,null,0]
[null,null,null,null,null,null,null,null,"Subtotal",null,null,null,{"$f":"SUM(M30:N45)","v":0}]
[null,null,null,null,null,null,null,null,null,null,null,"Freight (If Applicable)",0]
["Requestor Signature:",null,null,null,null,null,null,null,null,null,8.3125000000000004E-2,null,{"$f":"ROUND(M46:N46*K48,2)","v":0}]
[null,null,null,null,null,null,null,null,null,null,null,"Total of Purchase:",{"$f":"SUM(M46:N48)","v":0}]
[]
["Supervisor/Director Approval:"]
["Supervisor/Director's Printed Name: ",null,null,"Name",null,null,null,null,null,null,"Date"]
[null,null,null,null,null,null,null,null,null,null,null,"Revised:",{"$f":"Vendors!B1","v":"2017-08-09"}]
["This document is NOT a Purchase Order"]

{"sheet":"PO Req","index":1,"n_rows":54,"n_cols":13,"rows_kept":54,"cut":false,"hidden":false,"merged":[[7,0,7,6],[8,1,8,4],[8,8,8,12],[9,1,9,4],[10,1,10,4],[9,6,9,9],[9,10,9,11],[6,8,6,12],[0,0,0,7],[1,1,1,4],[2,1,2,5],[4,1,4,3],[5,1,5,3],[13,2,13,4],[11,8,11,11],[12,8,12,10],[13,8,13,11],[15,0,15,5],[14,8,14,11],[11,1,11,4],[12,1,12,4],[16,0,16,2],[17,1,17,4],[17,7,17,11],[20,0,20,1],[20,2,20,5],[20,6,20,7],[20,8,20,11],[21,0,21,12],[23,0,23,1],[23,2,26,12],[27,0,27,6],[28,4,28,8],[28,12,28,13],[29,4,29,8],[29,12,29,13],[30,4,30,8],[30,12,30,13],[31,4,31,8],[31,12,31,13],[32,4,32,8],[32,12,32,13],[33,4,33,8],[33,12,33,13],[34,4,34,8],[34,12,34,13],[35,4,35,8],[35,12,35,13],[36,4,36,8],[36,12,36,13],[37,4,37,8],[37,12,37,13],[38,4,38,8],[38,12,38,13],[39,4,39,8],[39,12,39,13],[40,4,40,8],[40,12,40,13],[53,0,53,13],[48,12,48,13],[50,0,50,2],[50,3,50,6],[51,0,51,2],[51,3,51,6],[52,12,52,13],[47,0,47,1],[47,2,47,5],[47,10,47,11],[47,12,47,13],[41,4,41,8],[41,12,41,13],[42,4,42,8],[42,12,42,13],[46,12,46,13],[43,4,43,8],[43,12,43,13],[44,4,44,8],[44,12,44,13],[45,8,45,11],[45,12,45,13]]}
[]
[null,"Facilities and Services ",null,null,null,null," Requisition #:",null,null,null,null,null,"Official Use Only:"]
[null,"Purchasing Requisition/Order Form  "]
[]
["Requestor:"]
["Shop:","F&S, PD&E"]
[null,null,null,null,null,null,"Date Requested:",null,{"$f":"TODAY()","v":"2017-08-09"}]
["Vendor Information: (REQUIRED - Name, Address, & Phone)"]
["V","Select a vendor"]
["E",{"$f":"IF(B$9=\"SELECT A VENDOR\",\" \",VLOOKUP(B$9,Vendors!A$3:H$101,2))","v":" "},null,null,null,null,"Aim Project # (if applicable):"]
["N",{"$f":"IF(B$9=\"SELECT A VENDOR\",\" \",VLOOKUP(B$9,Vendors!A$3:H$101,3))","v":" "},null,null,null,null,null,null,null,"Will R &R money be used?"," Yes","          No"]
["D",{"$f":"IF(B$9=\"SELECT A VENDOR\",\" \",VLOOKUP(B$9,Vendors!A$3:H$101,4))","v":" "},null,null,null,null,null,"CES Contractor:","N/A"]
["O",{"$f":"IF(B$9=\"SELECT A VENDOR\",\" \",VLOOKUP(B$9,Vendors!A$3:H$101,5))","v":" "},null,null,null,null,null,null,{"$f":"IF(I$12=\"N/A\",\" \",VLOOKUP(I$12,Vendors!A$3:H$101,2))","v":" "}]
["R","Phone:",{"$f":"IF(B$9=\"SELECT A VENDOR\",\" \",VLOOKUP(B$9,Vendors!A$3:H$101,6))","v":" "},null,null,null,null,null,{"$f":"IF(I$12=\"N/A\",\" \",VLOOKUP(I$12,Vendors!A$3:H$101,3))","v":" "}]
[null,null,null,null,null,null,null,"CES Contract #:"]
["Submit Purchase Order by: (REQUIRED - select one)"]
["         Hand Carry by Requestor:"]
["         Fax:",{"$f":"IF(B$9=\"SELECT A VENDOR\",\" \",VLOOKUP(B$9,Vendors!A$3:H$101,7))","v":" "},null,null,null,null,"Email:",{"$f":"IF(B$9=\"SELECT A VENDOR\",\" \",VLOOKUP(B$9,Vendors!A$3:H$101,8))","v":" "}]
[null," Must provide number",null,null,null,null,null,null," Must provide email address"]
[]
["Custodian Name:",null," ",null,null,null,"Custodian Org:"]
["Custodian Name & Org Required if unit cost of any furniture, fixture, or equipment listed below is $1000.00 or greater; see instructions."]
[]
["Purpose of Purchase:"]
[]
[]
[]
["*If no work order is applicable, include Index and Account Code"]
["Work\nOrder","Phase\n#","Index","Account","Complete Description of Item(s)",null,null,null,null,"Qty","Units","Unit\nCost","Total \nCost"]
[null,null,null,null,null,null,null,null,null,null,null,null,{"$f":"ROUND(J30*L30,2)","v":0}]
[null,null,null,null,null,null,null,null,null,null,null,null,{"$f":"ROUND(J31*L31,2)","v":0}]
[null,null,null,null,null,null,null,null,null,null,null,null,0]
[null,null,null,null,null,null,null,null,null,null,null,null,0]
[null,null,null,null,null,null,null,null,null,null,null,null,0]
[null,null,null,null,null,null,null,null,null,null,null,null,0]
[null,null,null,null,null,null,null,null,null,null,null,null,0]
[null,null,null,null,null,null,null,null,null,null,null,null,0]
[null,null,null,null,null,null,null,null,null,null,null,null,0]
[null,null,null,null,null,null,null,null,null,null,null,null,0]
[null,null,null,null,null,null,null,null,null,null,null,null,0]
[null,null,null,null,null,null,null,null,null,null,null,null,0]
[null,null,null,null,null,null,null,null,null,null,null,null,0]
[null,null,null,null,null,null,null,null,null,null,null,null,0]
[null,null,null,null,null,null,null,null,null,null,null,null,0]
[null,null,null,null,null,null,null,null,null,null,null,null,0]
[null,null,null,null,null,null,null,null,"Subtotal",null,null,null,{"$f":"SUM(M30:N45)","v":0}]
[null,null,null,null,null,null,null,null,null,null,null,"Freight (If Applicable)",0]
["Requestor Signature:",null,null,null,null,null,null,null,null,null,8.3125000000000004E-2,null,{"$f":"ROUND(M46:N46*K48,2)","v":0}]
[null,null,null,null,null,null,null,null,null,null,null,"Total of Purchase:",{"$f":"SUM(M46:N48)","v":0}]
[]
["Supervisor/Director Approval:"]
["Supervisor/Director's Printed Name: ",null,null,"Name",null,null,null,null,null,null,"Date"]
[null,null,null,null,null,null,null,null,null,null,null,"Revised:",{"$f":"Vendors!B1","v":"2017-08-09"}]
["This document is NOT a Purchase Order"]

{"sheet":"Vendors","index":2,"n_rows":101,"n_cols":8,"rows_kept":101,"cut":false,"hidden":true,"merged":[]}
["UPDATED:","2017-08-09"]
["Vendor"," Line 2"," Line 3"," Line 4","Line 5","Telephone #","Fax #","email Address"]
["Select a vendor"," "," "," "," "," "]
["AAAAAAAA","Not Applicable","Not Applicable","Not Applicable","Not Applicable","N/A","N/A","Not Applicable"]
["Able Sign Co.","811 2nd Street","Las Cruces, NM 88005"," "," ","575-525-1015","     ","jeff@ablesignco.com"]
["AK Sales & Consulting, Inc.","115 E. Country Club Road","Roswell, NM  88201"," "," ","575-623-1488","575-623-0488","     "]
["Amec Foster Wheeler","2507 N Telshor Blvd  ","Suite D","Las Cruces, NM 88011"," ","575-888-3505","     ","lee.lommler@amecfw.com"]
["ANE Consultants, Inc.","912 Texas Avenue  ","Suite C","El Paso, Texas 79901"," ","915-532-3788","     ","aneconsulting@att.net"]
["Armstrong Group, Inc.","2415 Princeton Drive, NE  ","Suite E","Albuquerque, NM 87107"," ","505-235-7596","     ","davida@agiconsultants.com"]
["ASA Architects","201 N. Alameda","Las Cruces, NM 88005"," "," ","575-526-3111","575-523-9667","ted@asa-architects.com"]
["Atkins Olshin Schade Architects","1807 2nd Street","Suite #34","Santa Fe, NM 87505"," ","505-982-2133","505-992-3454","sevens@aosarchitects.com"]
["B & H Mechanical, Inc.","1001 Parkhill Drive  ","Las Cruces, NM 88012"," "," ","575-524-3759","575-526-2599","dblack@bhmech.com"]
["Balis & Co.","4600A Montgomery NE  ","Suite 202","Albuquerque, NM 87109"," ","505-883-7990","     ","jon@balisandcompany.com"]
["Basic IDIQ, Inc.","7598 N. Mesa Streete","Suite #200","El Paso, TX   79912"," ","915-757-6875","     ","     "]
["Beck Total Office Interiors","606 West Amador  ","Las Cruces, NM 88005"," "," ","575-644-0775","     ","tara@becktoi.com"]
["BlueLine Rental","1905 S. Valley Dr.  ","Las Cruces, NM   88005"," "," ","575-524-1372","575-523-4882","sarah.lucero@bluelinerental.com"]
["Bohannan Huston","425 S. Telshor Blvd  ","Las Cruces, NM 88011-7237"," "," ","575-532-8670","575-532-8680","mthompson@bhinc.com"]
["Brandbury Stamm","7110 2nd Street NW","Albuquerque, NM 87107"," "," ","505-765-1200","505-842-5419","     "]
["Burns Construction","311 South Gate Court  ","Las Cruces, NM"," "," ","     ","     ","     "]
["C & E Industrial Services, Inc.","103 Maguey Place  ","Sunland Park, NM 88063"," "," ","575-997-0190","     ","jesusluna@ceindust.com"]
["Carver Electric Company, Inc.","PO Box 1469","Mesilla Park, NM  88047"," "," ","575-527-2127","575-527-2128","carver@carverelectric.com"]
["CD General Contractors","PO. Box 8637","Las Cruces, NM 88006"," "," ","575-647-1544","575-647-1537  ","c.d.gen.inc@gmail.com"]
["CD Mechanical","6881 Moongate Road","Las Cruces, NM 88012"," "," ","575-382-8474","575-382-5404","cdmechanical@comcast.net"]
["Cobb Fendley & Associates","12305 Mercantile Avenue B","El Paso, TX 79928"," "," ","505-508-0786","     ","swolfe@cobbfendley.com"]
["Complete Reprographics","1100 N. Main  ","Suite A","Las Cruces, NM 88001"," ","575-525-9400","     "]
["Cooperative Educational Services","4216 Balloon Park Road, NE","Albuquerque, NM 87109"," "," ","505-344-5470","     ","minnie@ces.org"]
["Crenshaw Consulting Group","3820 Masthead Street","Suite A","Albuquerque, NM 87109"," ","505-797-8771"," ","vcrenshaw@crenshawcg.com"]
["Dekker/Perich/Sabatini Ltd.","7601 Jefferson NE  ","Suite 100","Albuquerque, NM 87109"," ","505-761-9700","505-761-4222","dank@dpsdesign.org"]
["Dimar Systems, LLC","1581 Tecolote Trail","Las Cruces, NM 88012"," "," ","575382-0035","575-382-1403","     "]
["Donohue Land Surveys","100 Wyatt Drive, Suite A","Las Cruces, NM 88005"," "," ","575-523-1114","     ","dls@zianet.com"]
["El Paso Automated","11045 Argal Court","El Paso, TX 79935"," "," ","915-590-1992","915-590-3993","     "]
["Enoch Mechanical","790 W Palms","Las Cruces, NM  88007"," "," ","575-523-6741","575-523-7143","travis@enochmechanical.com"]
["Environmental Dynamics Inc.","142 Truman Street","Albuquerque, NM 87108"," "," ","505-242-2851","505-242-2852","info@edi-arch.com"]
["ESA Construction Inc.","3435 Girard NE","Albuquerque, NM 87107"," "," ","575-642-5125","     ","kenny@esaconstruction.com"]
["ExerPlay, Inc.","12001 N Hwy 14","Cedar Crest, NM 87008"," "," ","505-281-0151","     ","     "]
["Fanning Bard Tatum Architects, Ltd.","6501 Americas Parkway NE, Suite 300","Albuquerque, NM  87110"," "," ","505-883-5200","     ","sbj@fbtarch.com"]
["Fincham Mobile Storage","1620 Mars Avenue","Las Cruces, NM 88012"," "," ","575-373-0666","505-821-7243","bob@finchammobilestorage.com"]
["Geo-Test, Inc.","2806-A Las Vegas Court","Las Cruces, NM 88007"," "," ","575-526-6260","575-523-1660","tmatson@geotestnm.com"]
["GLHN Architects & Engineers, Inc.","2939 E. Broadway Blvd.","Tucson, AZ 85716"," "," ","520-881-4546","520-795-1822","hjohnso@glhn.com"]
["Gordian Group","140 Bridges Road, Suite E","Mauldin SC, 29662"," "," ","     ","     ","r.myers@thegordiangroup.com"]
["Greenway Studio","2621 E. Missouri Avenue","El Paso, TX 79903"," "," ","915-215-9488","     ","david@greenway-studio.com"]
["Hacienda Carpet & Tile, Inc.","910 El Paseo Road","Las Cruces, NM 88001"," "," ","575-525-2088","     ","     "]
["HKN Engineers","5825 Onix Drive","El Paso, TX 79912"," "," ","915-833-2100","915-833-3855","     "]
["Huitt-Zollars","6501 Americas Pkwy NE, Suite 550","Albuquerque, NM 87110-5372"," "," ","505-883-8114","     ","krkemper@huitt-zollars.com"]
["Ideals, Inc.","848 W. Hadley","Las Cruces, NM 88005"," "," ","575-532-9652","575-532-5045","mdubbin@ideals-inc.com"]
["Impact Electric","PO Box 900","Dona Ana, NM 88032"," "," ","575-644-6697","575-526-2955","impactelectric@msn.com"]
["Ingersoll Rand","3330 Vassar Drive NE","Albuquerque, Nm 87107"," "," ","505-234-6907","     ","     "]
["Jensen Hughes","376 E. Warm Springs Road  ","Suite #210","Las Vegas, NV 89119"," ","619-488-9810","     ","gpalenske@jensenhughes.com"]
["KEERS Remediation, Inc.","5904 Florence Ave, NE","Albuquerque, NM 87113"," "," ","505-823-9006","     ","clara@keers.com"]
["Krueger International, Inc.","c/o Beck Total Office Interiors","1330 Bellevue Street","Green Bay, WI 54302-2119"," ","575-644-0775","     ","tara@becktoi.com"]
["LC Structural","720 E. Chestnut Avenue","Las Cruces, NM 88001"," "," "," 575-526-1916","575-526-3114","johnnytapia@lcstructural.com"]
["Maloy Storage","6005 Las Alturas Dr","Las Cruces, NM 88011"," "," ","575-523-5321","     ","dan@maloystorage.com"]
["Metal Craft Company","924 West Picacho","Las Cruces, NM 88005"," "," ","575-524-8653","575-524-8655","     "]
["MFH Environmental Corp.","1932 W. Paisano Dr.","El Paso, TX 79922"," "," ","915-351-6004","915-351-6166","jnickolas@mfh-corp.com"]
["Molzen Corbin","1155 Commerce Drive","Las Cruces, New Mexico 88011"," "," ","575-522-0049","575-522-0049","jpaz@molzincorbin.com"]
["Moy Surveying, inc.","414 N. Downtown Mall","Las Cruces, New Mexico 88001"," "," ","575-525-9683","575-524-3238","moysuinc1001@qwestoffice.net"]
["MRWM Landscape Architects","210 La Veta NE","Albuquerque, NM 87108"," "," ","505-268-2266","505-265-9637","     "]
["Murrill Electric","807 Del Rio","Carlsbad, NM 88220"," "," ","575-234-9905","575-234-9907","     "]
["National Office Furniture","c/o Beck Total Office Interiors","1610 Royal Street","Jasper, IN  47549-1002"," ","575-644-0775","     ","tara@becktoi.com"]
["NCA Architects, P.A.","1306 Rio Grande Blvd, NW","Albuquerque, NM 87104"," ","Robert M. Calvani","505-255-6400","505-268-6954","jlayman@nca-architects.com"]
["New Republic Architects","7100 Westwind  ","Suite 150","El Paso, TX   79912"," ","915-585-7028",null,"angel@nraia.com"]
["Nine Degrees Architecture","176 Yellowlegs","Santa Teresa, NM 88008"," "," ","915-526-8739","915-533-3282","cesarm@nine-degrees.com"]
["NuAir, Inc.","2100 Fernbrook Lane","Plymouth, MN   55447"," "," ","800-328-3352","763-553-0459","orders@nuaire.com"]
["Parkhill, Smith & Cooper","115 W. Griggs Avenue","Las Cruces, NM 88001"," "," ","575-523-0915","     ","dhart@team-psc.com"]
["Patricia Decker","2109 W. Briscoe Ave.","Artesia NM 88210"," "," ","575-639-1299","     ","Zendara@yahoo.com"]
["Pro-Tech Fence Company","PO Box 620","Mesilla, NM 88046"," "," ","575-642-6382","575-524-0774","rudyfence@yahoo.com"]
["ProTech Services","9601 Mendoza Ave. NE","Albuquerque, NM 87109"," "," "," 505-821-5130","505-821-0614","protechservicesllc@comcast.net"]
["R2 Contractors Specialty, Inc.","PO Box 16015","Las Cruces, NM   88004"," "," ","575-523-4052","575-523-9584","r2csil@gmail.com"]
["RBM Engineering, Inc.","1065 S. Main St.","Building D, Suite A","Las Cruces, NM  88005"," ","575-647-1554","(575) 647-1563","rbeasley@rbm.cc"]
["RCI Power & Lighting, Inc.","1350 Chaparro Streeet","Las Cruces, NM 88001"," "," ","575-532-1110","     ","jay@rcipowerinc.com"]
["Renegade Construction, LLC","200 Crawford","Las Cruces, NM 88007"," "," ","575-523-2600","575-523-5595","zekegreer@hotmail.com"]
["Rio Grande Contract Furniture","2261 S. Main Street","Las Cruces, NM 88005"," "," ","575-524-3355","575-527-8680","dhorsley@riograndebpsi.com"]
["RMKM Architecture, P.C.","400 Gold Avenue, SW  ","Studio 1100","Albuquerque, NM 87102"," ","505-243-5454","505-243-5858","mrohde@rmkmarch.com"]
["Sandoval Construction, Inc.","2000 E. Lohman Avenue","Las Cruces, NM 88001"," "," ","575-524-6878","     ","gabe@sandoval-lc.com"]
["Sites Southwest","121 Tijeras NE","Suite 3100","Albuquerque, NM 87102"," ","505-522-8200","505-822-8282","mail@sites-sw.com"]
["Smith & Aguirre Construction Co, Inc.","2475 Lakeside Drive","Las Cruces, NM 88007"," "," ","575-527-2500","     ","grgagrr@runbox.com"]
["Smith Engineering Co.","201 N. Church Steet  ","Suite #200a","Las Cruces, NM  88001"," ","575-523-2395","     ","franciscou@smithengineering.pro"]
["Souder Miller & Associates","401 N. 17th Street","Las Cruces, NM 88005"," "," ","575-647-0799","575-647-0680","karl.tonander@soudermiller.com"]
["Southwest Hazard Control, Inc.","250 17th Street, Suite B","Las Cruces, NM 88001"," "," ","575-541-5586","505-298-7142","karmendariz@swhaz.com"]
["Staples Contract & Commercial, Inc.","8602 W. Buckeye Road","Tolleson, AZ 85353"," "," ","623-432-3250","     ","     "]
["Stout Hardwood Floor Co","695 S Compress Rd # 1","Las Cruces, NM 88005"," "," ","575-993-5228","575 644-2180","bstout@stouthardwood.com"]
["Stubbs Engineering","277 E. Amador Avenue  ","Suite 200","Las Cruces, NM 88001"," ","575-993-5228","     ","mstubbs@stubbseng.com"]
["Studio-D Architects","509 S. Main Street, Suite D","Las Cruces, NM 88001"," "," ","575-521-3757","575-589-0720","jason@studio-d.biz"]
["Sun City Analytical Inc.","1409 Montana Avenue","El Paso, TX 79902"," "," ","915-533-8840","915-533-8843","main@scaitc.com"]
["T&D Services, LLC","9550 San Mateo Blvd  ","Suite G","Albuquerque, NM 87113"," ","505-344-4234","     ","hbarnesjr@t-d-services.com"]
["TBD","TBD  ","TBD","TBD","TBD","TBD","TBD","TBD"]
["Terracon Consultants, Inc.","4450 Bataan Memorial East","Las Cruces, NM 88013"," "," ","575-527-1700","575-527-1092","terracon.com"]
["ThyssenKrupp Elevator Americas","8500 Washington Street, NE","Suite A4","Albuquerque, NM 87113"," ","505-858-2169","866-768-8120","mark.prevot@thyssenkrupp.com"]
["U-Haul","1608 El Paseo","Las Cruces, NM 88001"," "," ","575-523-2433","     ","     "]
["Van H. Gilbert Architects","2428 Baylor Drive SE","Albuquerque, NM 87106"," "," ","505-247-9955","505-247-1826","vgilbert@vhgarchitect.com"]
["Vanderweil Engineers","503 East Plaza Circle","Litchfield Park, AZ 85340"," "," ","602-550-5262","     ","sboyd@vanderweil.com"]
["Varidesk, LLC","PO Box 3588","Coppell, TX 75019"," "," ","800-207-2587","469-549-0592","sales@varidesk.com"]
["Verde Environmental","PO Box 13226","Las Cruces, NM   88013","Ray Reynaud"," ","575-496-0868","575-521-8260","ray@verde-environmental.com"]
["Victor Stanley, inc.","PO Drawer 330","Dunkirk, MD 20754"," "," ","301-885-8300","410-257-7579","     "]
["Vigil & Associates","1765 Avenida de Mercado","Las Cruces, NM 88005"," "," ","575-527-0400","     ","ray@va-architects.com"]
["Warren Construction","2470 Lakeside Drive","Las Cruces, NM   88007"," "," ","575-527-9979","     ","steve@warrenconstruction.biz"]
["Watchdog Painting","1108 N. Ural Drive","Carlsbad, NM 88220"," "," ","575-200-9883","575-885-6139","watchdog1234@windstream.net"]
["Western Builders","225 E. Idaho","Suite #30","Las Cruces, NM   88005"," ","575-449-8222","575-541-5657","steven@westernbuildersnm.com"]
["Williams Design Group","1014 South Main Street","Las Cruces, NM 88005"," "," ","575-528-0022","575-528-0023","davidc@wdg-architects.com"]
["Yabumoto Architects, LLC","110 Corrida De Rio","Alto, NM 88312"," "," ","575-644-6986","     ","gary@yabumoto-architects-llc.com"]
["End of List","     ","     ","     ","     ","     ","     ","     "]

{"sheet":"CES Vendors","index":3,"n_rows":21,"n_cols":1,"rows_kept":21,"cut":false,"hidden":true,"merged":[]}
["CES Vendor"]
["N/A"]
["Bohannan Huston"]
["CD General Contractors"]
["CD Mechanical"]
["Dekker/Perich/Sabatini Ltd."]
["ESA Construction Inc."]
["Gordian Group"]
["Huitt-Zollars"]
["Impact Electric"]
["KEERS Remediation, Inc."]
["LC Structural"]
["Maloy Storage"]
["Molzen Corbin"]
["RBM Engineering, Inc."]
["Renegade Construction, LLC"]
["Sites Southwest"]
["Souder Miller & Associates"]
["Southwest Hazard Control, Inc."]
["TBD"]
["End of List"]

{"sheet":"Sheet1","index":4,"n_rows":0,"n_cols":0,"rows_kept":0,"cut":false,"hidden":false,"merged":[]}